Cogmind - Beta 17.1 @@@ ROGUE MODE // 2026.09.03 @ 03:05:50 Player: TheSkyeDoctor Result: Destroyed by as-04966 with Assembled Maul Performance ------------- Evolutions (1) 500 Regions Visited (4) 800 Robots Destroyed (40) 200 Value Destroyed (964) 964 Prototype IDs (3) 60 Alien Tech Used (0) 0 Bonus (0) 0 TOTAL SCORE: 2524 Bonus ------- None Cogmind --------- Core Integrity 0/400 Matter 267/300 Energy 76/100 System Corruption 6% Temperature Cool (0) Movement Treading (160) Location -9/Mines Parts ------- > --- POWER (1) -------- (None) > --- PROPULSION (2) --- Light Treads > --- UTILITY (3) ------ Large Storage Unit Melee Analysis Suite > --- WEAPON (3) ------- (None) > --- INVENTORY (15) --- Ion Engine High-capacity Matter Pod (200) Improved Terrain Scanner Seismic Detector Splice Drone Bay (5/6) EM Pulse Gun Small Laser Katana Peak State ------------ > --- POWER ------------ Improved Ion Engine > --- PROPULSION ------- Light Treads Light Treads > --- UTILITY ---------- Large Storage Unit Signal Interpreter Splice Drone Bay > --- WEAPON ----------- Improved Medium Laser Improved Assault Rifle Improved Light Cannon > --- INVENTORY -------- Ion Engine Light Treads Wheel Armored Wheel High-capacity Matter Pod Improved Terrain Scanner Seismic Detector EM Pulse Gun Small Laser Grenade Launcher [Rating: 22] Favorites ----------- Power Light Ion Engine Engine Light Ion Engine Propulsion Light Treads Treads Light Treads Wheel Armored Wheel Utility Large Storage Unit Device Seismic Detector Storage Large Storage Unit Processor Signal Interpreter Weapon EM Pulse Gun Energy Gun EM Pulse Gun Ballistic Gun Improved Assault Rifle Ballistic Cannon Improved Light Cannon Launcher Grenade Launcher Build | -11 -10 -10 -9 -9 ------- Run | Yrd Mat Min Mat Min Slots Evolved 2 | . . . 2 . Power . | . . . . . Propulsion . | . . . . . Utility 1 | . . . 1 . Weapon 1 | . . . 1 . Parts Attached 23 | 7 1 . 11 4 Power 3 | 1 . . 2 . Engine 3 | 1 . . 2 . Core . | . . . . . Reactor . | . . . . . Propulsion 6 | 2 . . 1 3 Treads 4 | 2 . . 1 1 Leg . | . . . . . Wheel 2 | . . . . 2 Hover . | . . . . . Flight . | . . . . . Utility 6 | 2 1 . 2 1 Device 2 | 1 . . 1 . Storage 2 | 1 1 . . . Processor 2 | . . . 1 1 Hackware . | . . . . . Protection . | . . . . . Artifact . | . . . . . Weapon 8 | 2 . . 6 . Energy Gun 5 | 2 . . 3 . Energy Cannon . | . . . . . Ballistic Gun 1 | . . . 1 . Ballistic Cannon 1 | . . . 1 . Launcher 1 | . . . 1 . Special Weapon . | . . . . . Impact Weapon . | . . . . . Slashing Weapon . | . . . . . Piercing Weapon . | . . . . . Special Melee Weapon . | . . . . . Unidentified Prototypes 3 | . . . 3 . Parts Lost 13 | . . . 4 9 Power 2 | . . . 1 1 Propulsion 3 | . . . . 3 Utility 1 | . . . . 1 Weapon 7 | . . . 3 4 Highest Loss Streak 9 | . . . 2 9 To Critical Strikes . | . . . . . Average Backups 7 | 1 4 6 8 11 Power . | . 1 1 1 1 Propulsion 2 | . 1 2 2 2 Utility 2 | . 1 1 3 3 Weapon 1 | . 1 1 1 3 Tool/Special . | . . . . . Unused Backups 5 | . . . 1 4 Power 1 | . . . 1 . Propulsion . | . . . . . Utility 2 | . . . . 2 Weapon 2 | . . . . 2 Tool/Special . | . . . . . Average Slot Usage (%) 96 | . 100 100 95 90 Engine 11 | . 14 14 10 8 Treads 23 | . 28 28 22 17 Device 13 | . 14 14 15 1 Storage 11 | . 14 14 11 11 Processor 3 | . . . 3 19 Energy Gun 21 | . 28 28 21 8 Ballistic Gun 2 | . . . 2 10 Ballistic Cannon 6 | . . . 8 9 Peak Build Rating 22 | 7 7 8 18 22 Average Rating 12 | 5 7 7 15 16 On Entrance 7 | . 7 7 8 16 Avg Prop Armor Cover (%) 12 | . . . . 12 Naked Turns . | . . . . . Heaviest Build 44 | 13 28 28 44 37 Greatest Support 40 | 40 40 40 40 40 Greatest Overweight (x) 2 | . . . 1 2 Average Overweight (x) . | . . . . . Largest Inventory Capacity 15 | 8 15 15 15 15 Average Capacity 13 | 7 9 15 15 15 Most Carried 12 | 4 6 9 11 12 Average Carried 7 | 1 4 6 8 11 Final Capacity 15 | 8 15 15 15 15 Final Carried 11 | 4 5 9 11 8 Class Distribution -------------------- 63% | Gunner 36% | Mutant Dominant Class ---------------- Mutant | -10/Materials Mutant | -10/Mines Gunner | -9/Materials Gunner | -9/Mines Resources | -11 -10 -10 -9 -9 ----------- Run | Yrd Mat Min Mat Min Matter Collected 845 | 270 . 60 474 41 Remotely . | . . . . . Salvage Created 1271 | 126 . . 1029 116 Parts 93 | 9 . . 77 7 Haulers Intercepted 3 | . . . 3 . Recyclers Shooed 1 | 1 . . . . Parts Field Recycled . | . . . . . Retrieved Matter . | . . . . . Parts Self-Destructed . | . . . . . Prevented . | . . . . . Parts Restored . | . . . . . Kills | -11 -10 -10 -9 -9 ------- Run | Yrd Mat Min Mat Min Combat Hostiles Destroyed 27 | . . . 22 5 Guns 15 | . . . 11 4 Cannons 7 | . . . 6 1 AOE 5 | . . . 5 . Classes Destroyed 11 | 2 . . 9 . Worker 2 | . . . 2 . Tunneler 3 | 2 . . 1 . Hauler 3 | . . . 3 . Recycler 1 | 1 . . . . Operator 2 | . . . 2 . Watcher 2 | . . . 2 . Swarmer 6 | . . . 3 3 Grunt 15 | . . . 14 1 Brawler 1 | . . . 1 . Duelist 2 | . . . 1 1 Sentry 3 | . . . 3 . Best Kill Streak 6 | 2 . . 6 3 Combat Bots Only 5 | . . . 5 3 Max Kills in Single Turn 3 | 1 . . 3 1 Gunslinging . | . . . . . Exploded 2 | . . . 2 . Melee . | . . . . . Uniques/NPCs Destroyed . | . . . . . Combat | -11 -10 -10 -9 -9 -------- Run | Yrd Mat Min Mat Min Hostile Shots Fired 144 | . 17 . 61 66 Missed 36 | . 5 . 15 16 Hits 108 | . 12 . 46 50 Melee 16 | . . . 1 15 Projectile 92 | . 12 . 45 35 AOE 10 | . . . . 10 Critical Strikes 4 | . . . 2 2 Damage Taken 1838 | 26 98 . 566 1148 Core 412 | . 9 . 107 296 Absorbed by Shields . | . . . . . Core Remaining (%) 98 | 100 . 96 . . Volleys Fired 61 | 4 . . 50 7 Largest 3 | 2 . . 3 3 Hottest 120 | 80 . . 120 112 Shots Fired 170 | 8 . . 141 21 Gun 115 | 8 . . 93 14 Cannon 51 | . . . 44 7 Launcher 4 | . . . 4 . Special . | . . . . . Kinetic 64 | . . . 50 14 Thermal 13 | . . . 6 7 Explosive 4 | . . . 4 . Electromagnetic 89 | 8 . . 81 . Robot Hit Streak 9 | 4 . . 8 9 Robot Miss Streak 5 | 1 . . 5 1 Penetration Max . | . . . . . Secondary Targets . | . . . . . Shots Hit Robots 86 | 5 . . 70 11 Core Hits 53 | 3 . . 45 5 Critical Kills . | . . . . . Critical Parts Destroyed . | . . . . . Critical Strikes 1 | . . . 1 . Blast 1 | . . . 1 . Melee Attacks . | . . . . . Impact . | . . . . . Slashing . | . . . . . Piercing . | . . . . . Sneak Attacks . | . . . . . Combat Hostiles . | . . . . . Follow-up Attacks . | . . . . . Damage Inflicted 1957 | 133 . . 1643 181 Guns 949 | 65 . . 746 138 Cannons 526 | . . . 483 43 Explosions 482 | 68 . . 414 . Melee . | . . . . . Ramming . | . . . . . Kinetic 682 | . . . 554 128 Thermal 257 | 68 . . 136 53 Explosive 289 | . . . 289 . Electromagnetic 729 | 65 . . 664 . Impact . | . . . . . Slashing . | . . . . . Piercing . | . . . . . Highest Corruption 6 | . . . . 6 Average Corruption 3 | . . . . 3 Corruption Purged . | . . . . . Corruption Blocked . | . . . . . Overload Shots . | . . . . . Overflow Damage 6 | . . . 6 . Projectiles . | . . . . . Explosions 6 | . . . 6 . Melee . | . . . . . Knockbacks 3 | . . . 2 1 Impact . | . . . . . Kinetic 2 | . . . 1 1 Secondary 1 | . . . 1 . Self-Inflicted Damage 76 | 27 . . 49 . Shots 3 | 1 . . 2 . Rammed . | . . . . . Targets Rammed . | . . . . . Kicked . | . . . . . Crushed . | . . . . . Highest Temperature 295 | 36 . . 295 134 Average Temperature 79 | 18 . . 83 71 Received Heat Transfer 235 | . . . 189 46 Siege Activations . | . . . . . Martial Activations . | . . . . . Shielding Activations . | . . . . . Robots Disrupted . | . . . . . Combat Hostiles . | . . . . . Robots Corrupted . | . . . . . Combat Hostiles . | . . . . . Parts Fried 3 | . . . 3 . Impact Corruptions . | . . . . . Robots Melted . | . . . . . Combat Hostiles . | . . . . . Parts Melted 1 | 1 . . . . Heat Transferred 486 | 100 . . 275 111 Parts Sabotaged . | . . . . . Parts Stolen . | . . . . . Parts Stripped . | . . . . . Power Chain Reactions 4 | 2 . . 2 . Alert | -11 -10 -10 -9 -9 ------- Run | Yrd Mat Min Mat Min Maximum Alert Level 1 | . . . 1 . Low Security (%) 75 | 100 100 100 57 100 Level 1 24 | . . . 42 . Level 2 . | . . . . . Level 3 . | . . . . . Level 4 . | . . . . . Level 5 . | . . . . . High Security . | . . . . . Max Security . | . . . . . Peak Influence 384 | 10 13 . 384 181 Initial 131 | . . . . 131 Average 109 | . . . 167 137 Influence Increases 848 | 15 13 . 685 135 Destroy 0b10 Robot/C 540 | . . . 440 100 Destroy 0b10 Robot/NC 65 | 15 . . 50 . Destroy Leader 130 | . . . 110 20 Successful Hack 13 | . 13 . . . Disable Machine 45 | . . . 45 . Destroy Structure 25 | . . . 25 . Lose Combat Pursuer 30 | . . . 15 15 Influence Decreases 762 | 15 13 . 348 386 Entered New Map 206 | . . . . 206 Time Decay 416 | 15 13 . 318 70 Lost Part 120 | . . . 30 90 Lost Ally 20 | . . . . 20 Squads Dispatched 4 | . . . 4 . Investigation 2 | . . . 2 . Extermination . | . . . . . Reinforcement 2 | . . . 2 . Assault . | . . . . . Garrison . | . . . . . Intercept . | . . . . . Searches Triggered . | . . . . . Construction Impeded . | . . . . . Haulers Reinforced . | . . . . . Active Scanning Responses . | . . . . . Cargo Convoy Interrupts . | . . . . . Stealth | -11 -10 -10 -9 -9 --------- Run | Yrd Mat Min Mat Min Distress Signals 3 | . 1 . 2 . Communications Jammed . | . . . . . Distress Signals . | . . . . . Times Spotted 55 | . 4 . 35 16 Peak Tracking Total 9 | . 4 . 5 9 Tactical Retreats 2 | . . . 1 1 Traps | -11 -10 -10 -9 -9 ------- Run | Yrd Mat Min Mat Min Traps Triggered 1 | . . . 1 . Indirectly . | . . . . . Trap Hack Attempts . | . . . . . Triggered . | . . . . . Disarmed . | . . . . . Reprogrammed . | . . . . . Reused . | . . . . . Traps Extracted . | . . . . . Installed . | . . . . . Triggered . | . . . . . Machines | -11 -10 -10 -9 -9 ---------- Run | Yrd Mat Min Mat Min Machines Disabled 4 | . . . 4 . Max in Single Turn 1 | . . . 1 . Machines Repaired . | . . . . . Machines Dismantled . | . . . . . Machines Sabotaged . | . . . . . Overloaded Fab Kills . | . . . . . Hacking | -11 -10 -10 -9 -9 --------- Run | Yrd Mat Min Mat Min Machines Accessed 4 | . 1 1 2 . Terminals 2 | . 1 . 1 . Fabricators . | . . . . . Repair Stations . | . . . . . Recycling Units . | . . . . . Scanalyzers 1 | . . . 1 . Garrison Access . | . . . . . Total Hacks 9 | . 3 1 5 . Successful 3 | . 2 1 . . Failed 6 | . 1 . 5 . Catastrophic 2 | . . . 2 . Database Lockouts . | . . . . . Manual 5 | . 3 . 2 . Terminals 5 | . 3 . 2 . Fabricators . | . . . . . Repair Stations . | . . . . . Recycling Units . | . . . . . Scanalyzers 3 | . . . 3 . Garrison Access . | . . . . . Terminal Hacks 2 | . 1 1 . . Open Door 1 | . . 1 . . Branch Access Points 1 | . 1 . . . Fabricator Hacks . | . . . . . Repair Station Hacks . | . . . . . Recycling Unit Hacks . | . . . . . Scanalyzer . | . . . . . Garrison Access Hacks . | . . . . . Unauthorized Hacks 1 | . 1 . . . Terminals 1 | . 1 . . . Botnet 1 | . 1 . . . Fabricators . | . . . . . Repair Stations . | . . . . . Recycling Units . | . . . . . Scanalyzers . | . . . . . Garrison Access . | . . . . . Data Cores Recovered 1 | . . . 1 . Used . | . . . . . Hacking Detections 2 | . . . 2 . Full Trace Events 1 | . . . 1 . Feedback Events . | . . . . . Feedback Blocked . | . . . . . Robot Schematics Acquired . | . . . . . Robots Built . | . . . . . Authchips . | . . . . . Time . | . . . . . Total Robot Build Rating . | . . . . . Part Schematics Acquired . | . . . . . Parts Built . | . . . . . Authchips . | . . . . . Time . | . . . . . Total Part Build Rating . | . . . . . Part Studies Acquired . | . . . . . Parts Repaired . | . . . . . Time . | . . . . . Parts Recycled . | . . . . . Recycled Matter . | . . . . . Retrieved Matter . | . . . . . Retrieved Components . | . . . . . Parts Scanalyzed . | . . . . . Part Schematics Acquired . | . . . . . Parts Damaged . | . . . . . Bothacking | -11 -10 -10 -9 -9 ------------ Run | Yrd Mat Min Mat Min Used RIF Installer . | . . . . . Robots Hacked . | . . . . . Non-combat . | . . . . . Combat . | . . . . . Robot Hacks Applied . | . . . . . Relay Couplers Released . | . . . . . Fabnet Peak Effective % . | . . . . . Robots Rewired . | . . . . . Allies Hacked . | . . . . . Hacks Repelled . | . . . . . Allies | -11 -10 -10 -9 -9 -------- Run | Yrd Mat Min Mat Min Total Allies . | . . . . . Largest Group . | . . . . . Highest-Rated Group . | . . . . . Highest-Rated Ally . | . . . . . Total Orders . | . . . . . Ally Attacks 4 | . . . 2 2 Total Damage 8 | . . . 2 6 Kills . | . . . . . Allies Corrupted . | . . . . . Allies Melted . | . . . . . Intel | -11 -10 -10 -9 -9 ------- Run | Yrd Mat Min Mat Min Active Infowar (turns) 1243 | 28 216 233 766 . Seismic 1243 | 28 216 233 766 . Robot Analysis Total . | . . . . . Derelict Logs Recovered 1 | . . 1 . . Drone Launches 4 | . . . 2 2 Drone Recoveries 3 | . . . 2 1 Exploration | -11 -10 -10 -9 -9 ------------- Run | Yrd Mat Min Mat Min Turns Passed 1748 | 131 216 233 1017 151 Spaces Moved 875 | 70 134 144 448 79 Core 6 | 6 . . . . Treads 842 | 64 134 144 448 52 Legs . | . . . . . Wheels 27 | . . . . 27 Hover . | . . . . . Flight . | . . . . . Fastest Speed 50 | 50 160 160 160 85 Average Speed 169 | 150 160 160 183 140 Slowest Speed 240 | 160 160 160 240 160 Overloaded Moves . | . . . . . Propulsion Burnouts . | . . . . . Robots Hopped . | . . . . . Potential Cave-ins . | . . . . . Cave-ins Triggered . | . . . . . Exploration Rate (%) 32 | 5 32 51 51 24 Regions Visited 4 Branch Regions 2 Pre-discovered Areas . | . . . . . Known Exits Taken 2 | . 1 . 1 . Unknown Exits Taken 2 | 1 . 1 . . Scrap Searched 1 | . . 1 . . Spaces Dug . | . . . . . Terrain Destroyed 38 | 10 . . 28 . Melee . | . . . . . Projectile . | . . . . . AOE 38 | 10 . . 28 . Terrain Rammed . | . . . . . Walls Destroyed . | . . . . . Machines Disabled . | . . . . . Actions | -11 -10 -10 -9 -9 --------- Run | Yrd Mat Min Mat Min Total 1004 | 84 136 147 534 103 Wait 26 | . . . 18 8 Move 871 | 69 133 143 447 79 Hop . | . . . . . Pick Up 14 | 4 1 4 3 2 Fast Attach 12 | 7 . . 4 1 Attach 9 | . . . 4 5 Detach 3 | . . . 3 . Swap 5 | . 1 . 3 1 Drop 3 | . 1 . 2 . Fire 61 | 4 . . 50 7 Melee . | . . . . . Ram . | . . . . . Kick . | . . . . . Crush . | . . . . . Escape Stasis . | . . . . . Rewire . | . . . . . Trap . | . . . . . Miscellaneous . | . . . . . Route ------- -11/Scrapyard -10/Materials (discovered 2 exits: *Min x2) -10/Mines -9/Materials (discovered 2 exits: *Mat / *Min) -9/Mines History --------- Turn | Location | Event 19 | -11/Scrapyard | Discovered new exit (range 15) 132 | -11/Scrapyard | Entered Materials 132 | -10/Materials | Discovered new exit (range 8) 267 | -10/Materials | Identified exit to Mines 316 | -10/Materials | Build established: Mutant 348 | -10/Materials | Entered Mines 380 | -10/Mines | YI-UF0 nonchalantly dropped a Grenade Launcher on the ground 477 | -10/Mines | Learned 2 Materials zone layouts 518 | -10/Mines | Discovered new exit (range 15) 546 | -10/Mines | Found the Drone Emporium 556 | -10/Mines | Found Prototype Device 581 | -10/Mines | Entered Materials 581 | -9/Materials | Evolved 2 slots: Utility x1, Weapon x1 627 | -9/Materials | Identified Splice Drone Bay 872 | -9/Materials | Build established: Gunner 1160 | -9/Materials | Discovered new exit (range 15) 1311 | -9/Materials | Identified exit to Materials 1439 | -9/Materials | Discovered new exit (range 8) 1597 | -9/Materials | Identified exit to Mines 1598 | -9/Materials | Entered Mines 1671 | -9/Mines | Assembled infested the area 1725 | -9/Mines | Core integrity fell below 50% 1749 | -9/Mines | Destroyed by as-04966 with Assembled Maul Last Messages --------------- 01674_ T-07 Excavator destroyed. 01697_ S-10 Pest destroyed. 01706_ Imp. Ion Engine destroyed. 01708_ C-45 Heavy ARC bursts open, deploying its payload. 01708_ D-53 Grenadier unfolds itself. 01709_ Imp. Medium Laser destroyed. 01716_ The unstable cave ceiling collapses. 01717_ as-37965 destroyed. 01719_ Lgt. Treads destroyed. 01721_ Imp. Light Cannon destroyed. 01736_ Imp. Assault Rifle destroyed. 01740_ Wheel destroyed. 01740_ System corrupted by crushing effect (+2). 01741_ Arm. Wheel severed. 01744_ Grenade Launcher destroyed. 01746_ Signal Interpreter destroyed. 01746_ System corrupted by crushing effect (+2). 01746_ Lgt. Treads destroyed. 01746_ System corrupted by crushing effect (+2). Map ----- +----------------------------------------------------+ | ?????????????????????????????????????????????????? | | ?????????????????????????????????????????????????? | | ?????????????????????????????????????????????????? | | ?????????????????????????????????????????????????? | | ?????????????????????????????????????????????????? | | ?????????????????????????????????????????????????? | | ?????????????????????????????????????????????????? | | ?????????????????????????????????????????????????? | | ?????????????????????????????????????????????????? | | ?????????????????????????????????????????????????? | | ?????????????????????????????????????????????????? | | ?????????????????????????????????????????????????? | | ?????????????????????????????????????????????????? | | ??????????????????????# ????????????????????????? | | ??????????????????????# ????????????????????????? | | ??????????????????????# ????????????????????????? | | ??????????????????????# #???????????????????????? | | ??????????????????????# #???????????????????????? | | ??????????????????????# #???????????????????????? | | ??????????????????????# #???????????????????????? | | ??????????????????????# #???????????????????????? | | ????????####??????????# =%???????????????????????? | | ???????## ########???# #???????????????????????? | | ???????# #???# #???????????????????????? | | ?????### = ### a###?????????????????????? | | ?????# ### a@ ##????????????????????? | | ?????# #?# # aa #????????????????????? | | ?????# ## da #????????????????????? | | ?????## ## #????????????????????? | | ?????# ## #????????????????????? | | ????# # ##????????????????????? | | ????# ## ##????????????????????? | | ????## ##### ! #????????????????????? | | ?????# #### |% #????????????????????? | | ?????## ## ! ##????????????????????? | | ??????# ## ####?????????????????????? | | ??????# ! ###????????????????????????? | | ?????## !%##??????????????????????????? | | ?????# ### |#???????????????????????????? | | ????# ## #???????????????????????????? | | ??# ## #???????????????????????????? | | ??# % #### #???????????????????????????? | | ??# ### [ ##??# ############?#??????????????? | | ??####??# ####???# ## #??????????????? | | ????????# #??????# ## """ """ #??????????????? | | ????????# #??????# # %= """ #??????????????? | | ????????#" ???????# """ #??????????????? | | ????????#%"???????#### % #??????????????? | | ???????? " ??????????# % """ #??????????????? | | ????????###??????????# """ #??????????????? | +----------------------------------------------------+ Best States ------------- Heat Dissipation 28 Energy Generation 12 Energy Capacity 265 Matter Stores 300 Matter Capacity 300 Sight Range 16 Terrain Scan Density 10 Evasion (%) 43 Melee Accuracy 5 Recoil Reduction 2 Item Schematics ----------------- None Robot Schematics ------------------ None Fabricated ------------ Nothing Repaired ---------- Nothing Studied --------- None Alien Tech Used ----------------- None Achievements -------------- None Challenges ------------ None Game ------ Seed MetafiberCloakingExoskeleton Manual? 0 Play Time 00:11:57 Cumulative 191.6 hours Start 2026.09.03 @ 02:54:25 End 2026.09.03 @ 03:05:50 Sessions 1 Manual Loads 0 Difficulty Rogue Special Mode None Game No. 380 Rogue 380 Adventurer 0 Explorer 0 Win Type - Total 2 Types 2/0/0/0/0/0/0/0/0/0 Lore% 59 Gallery% 61 Achievement% 47 Wizard Run 0 Options --------- Layout 2 ASCII 0 Keyboard 1 Movement Arrows Keybinds 0 Fullscreen 1 Font 24/Smallcaps Map View 50x44 Zoom Use 0% Tactical HUD 1 Map Filters NONE Filters NONE Steam 1 RUN: 33d57cfe-6b08-46fc-a7ef-28030bdfcab2